[Event "Titled Tuesday Blitz May 24 Early 2022"]
[White "Nguyen, Quoc Hy"]
[Black "Manukian, Artak"]
[WhiteFideId "12410853"]
[BlackFideId "13301373"]
[WhiteElo "1938"]
[BlackElo "2533"]
[Result "1-0"]
[Round "10"]
[TimeControl "180+1"]
[Date "2022.05.25"]
[WhiteClock "0:01:45"]
[BlackClock "0:01:18"]

1. d4 {[%clk 0:03:00]}  d5 {[%clk 0:02:59]} 2. c4 {[%clk 0:03:00]}  dxc4 {[%clk 0:02:57]} 3. Nf3 {[%clk 0:02:57]}  Nf6 {[%clk 0:02:56]} 4. e3 {[%clk 0:02:55]}  e6 {[%clk 0:02:55]} 5. Bxc4 {[%clk 0:02:55]}  a6 {[%clk 0:02:53]} 6. O-O {[%clk 0:02:52]}  c5 {[%clk 0:02:49]} 7. Qe2 {[%clk 0:02:47]}  b5 {[%clk 0:02:48]} 8. Bd3 {[%clk 0:02:47]}  cxd4 {[%clk 0:02:44]} 9. exd4 {[%clk 0:02:44]}  Bb7 {[%clk 0:02:43]} 10. Bg5 {[%clk 0:02:43]}  Be7 {[%clk 0:02:42]} 11. Nc3 {[%clk 0:02:42]}  O-O {[%clk 0:02:34]} 12. Rad1 {[%clk 0:02:42]}  Nbd7 {[%clk 0:02:22]} 13. Bb1 {[%clk 0:02:39]}  Re8 {[%clk 0:02:20]} 14. Ne5 {[%clk 0:02:38]}  Nf8 {[%clk 0:02:18]} 15. Bxf6 {[%clk 0:02:18]}  Bxf6 {[%clk 0:02:15]} 16. Be4 {[%clk 0:02:19]}  Rb8 {[%clk 0:02:02]} 17. Bxb7 {[%clk 0:02:09]}  Rxb7 {[%clk 0:02:03]} 18. Ne4 {[%clk 0:02:09]}  Be7 {[%clk 0:01:57]} 19. Nc5 {[%clk 0:02:05]}  Rb6 {[%clk 0:01:47]} 20. Qf3 {[%clk 0:01:54]}  Bf6 {[%clk 0:01:42]} 21. Ng4 {[%clk 0:01:49]}  Rd6 {[%clk 0:01:26]} 22. Nb7 {[%clk 0:01:46]}  Qe7 {[%clk 0:01:18]} 23. Nxf6+ {[%clk 0:01:45]} 1-0


[Site "https://www.chess.com"]

[Event "Titled Tuesday Blitz May 24 Early 2022"]
[White "Nogerbek, Kazybek"]
[Black "Le, Tuan Minh"]
[WhiteFideId "13710427"]
[BlackFideId "12401153"]
[WhiteElo "2441"]
[BlackElo "2450"]
[Result "0-1"]
[Round "10"]
[TimeControl "180+1"]
[Date "2022.05.24"]
[WhiteClock "0:01:35"]
[BlackClock "0:01:24"]

1. Nf3 {[%clk 0:03:00]}  d5 {[%clk 0:02:58]} 2. e3 {[%clk 0:03:00]}  Nf6 {[%clk 0:02:56]} 3. c4 {[%clk 0:03:01]}  c6 {[%clk 0:02:56]} 4. Nc3 {[%clk 0:03:01]}  a6 {[%clk 0:02:52]} 5. b3 {[%clk 0:02:59]}  Bg4 {[%clk 0:02:52]} 6. Bb2 {[%clk 0:02:58]}  e6 {[%clk 0:02:52]} 7. d4 {[%clk 0:02:55]}  Nbd7 {[%clk 0:02:52]} 8. Bd3 {[%clk 0:02:55]}  Bd6 {[%clk 0:02:52]} 9. O-O {[%clk 0:02:55]}  O-O {[%clk 0:02:52]} 10. h3 {[%clk 0:02:56]}  Bh5 {[%clk 0:02:52]} 11. e4 {[%clk 0:02:57]}  dxc4 {[%clk 0:02:43]} 12. Bxc4 {[%clk 0:02:56]}  e5 {[%clk 0:02:43]} 13. dxe5 {[%clk 0:02:57]}  Nxe5 {[%clk 0:02:42]} 14. Be2 {[%clk 0:02:57]}  Bxf3 {[%clk 0:02:41]} 15. Bxf3 {[%clk 0:02:58]}  Nd3 {[%clk 0:02:35]} 16. Qc2 {[%clk 0:02:48]}  Nxb2 {[%clk 0:02:30]} 17. Qxb2 {[%clk 0:02:49]}  Qe7 {[%clk 0:02:30]} 18. Rfe1 {[%clk 0:02:46]}  Qe5 {[%clk 0:02:26]} 19. g3 {[%clk 0:02:46]}  Bb4 {[%clk 0:02:24]} 20. Re3 {[%clk 0:02:44]}  Rfd8 {[%clk 0:02:24]} 21. Kg2 {[%clk 0:02:41]}  h5 {[%clk 0:02:22]} 22. h4 {[%clk 0:02:40]}  Bc5 {[%clk 0:02:15]} 23. Ree1 {[%clk 0:02:35]}  Rd3 {[%clk 0:02:14]} 24. Na4 {[%clk 0:02:13]}  Bd4 {[%clk 0:02:12]} 25. Qe2 {[%clk 0:02:11]}  Rxf3 {[%clk 0:02:11]} 26. Qxf3 {[%clk 0:02:12]}  Bxa1 {[%clk 0:02:11]} 27. Nb6 {[%clk 0:02:12]}  Rd8 {[%clk 0:01:42]} 28. Nc4 {[%clk 0:02:12]}  Qc3 {[%clk 0:01:42]} 29. Re3 {[%clk 0:02:11]}  Qc2 {[%clk 0:01:27]} 30. e5 {[%clk 0:01:36]}  Ng4 {[%clk 0:01:27]} 31. Re2 {[%clk 0:01:35]}  Qd3 {[%clk 0:01:24]} 0-1


[Site "https://www.chess.com"]

[Event "Titled Tuesday Blitz May 24 Early 2022"]
[White "Pacheco Lugo, Alejandro Jose"]
[Black "Martin, Lewis"]
[WhiteFideId "3903745"]
[BlackFideId "410551"]
[WhiteElo "2146"]
[BlackElo "2145"]
[Result "1-0"]
[Round "10"]
[TimeControl "180+1"]
[Date "2022.05.25"]
[WhiteClock "0:02:04"]
[BlackClock "0:01:10"]

1. e4 {[%clk 0:02:55]}  c5 {[%clk 0:02:59]} 2. Nf3 {[%clk 0:02:55]}  d6 {[%clk 0:02:59]} 3. d4 {[%clk 0:02:55]}  cxd4 {[%clk 0:02:59]} 4. Nxd4 {[%clk 0:02:56]}  Nf6 {[%clk 0:02:59]} 5. Nc3 {[%clk 0:02:56]}  a6 {[%clk 0:03:00]} 6. Be3 {[%clk 0:02:57]}  e5 {[%clk 0:02:59]} 7. Nb3 {[%clk 0:02:57]}  Be7 {[%clk 0:02:58]} 8. f3 {[%clk 0:02:58]}  Be6 {[%clk 0:02:56]} 9. Qd2 {[%clk 0:02:58]}  O-O {[%clk 0:02:55]} 10. O-O-O {[%clk 0:02:58]}  b5 {[%clk 0:02:50]} 11. g4 {[%clk 0:02:58]}  Nbd7 {[%clk 0:02:47]} 12. g5 {[%clk 0:02:58]}  Nh5 {[%clk 0:02:47]} 13. Rg1 {[%clk 0:02:53]}  Rc8 {[%clk 0:02:45]} 14. Kb1 {[%clk 0:02:51]}  Nb6 {[%clk 0:02:40]} 15. Qf2 {[%clk 0:02:52]}  Nc4 {[%clk 0:02:39]} 16. Bxc4 {[%clk 0:02:44]}  bxc4 {[%clk 0:02:34]} 17. Nc5 {[%clk 0:02:44]}  Qa5 {[%clk 0:02:26]} 18. Nxe6 {[%clk 0:02:32]}  fxe6 {[%clk 0:02:26]} 19. Bb6 {[%clk 0:02:33]}  Qxc3 {[%clk 0:01:53]} 20. bxc3 {[%clk 0:02:31]}  Rb8 {[%clk 0:01:52]} 21. Ka1 {[%clk 0:02:30]}  Nf4 {[%clk 0:01:45]} 22. Qe3 {[%clk 0:02:15]}  Rb7 {[%clk 0:01:44]} 23. a4 {[%clk 0:02:12]}  a5 {[%clk 0:01:39]} 24. h4 {[%clk 0:02:10]}  Rfb8 {[%clk 0:01:35]} 25. Rb1 {[%clk 0:02:10]}  Ng6 {[%clk 0:01:10]} 26. Bc7 {[%clk 0:02:04]} 1-0


[Site "https://www.chess.com"]

[Event "Titled Tuesday Blitz May 24 Early 2022"]
[White "Petrovskyi, Vadym"]
[Black "Tarigan, Gilbert Elroy"]
[WhiteFideId "14165210"]
[BlackFideId "7108133"]
[WhiteElo "2400"]
[BlackElo "1908"]
[Result "1-0"]
[Round "10"]
[TimeControl "180+1"]
[Date "2022.05.24"]
[WhiteClock "0:00:48"]
[BlackClock "0:00:02"]

1. e4 {[%clk 0:02:57]}  e5 {[%clk 0:02:54]} 2. Nf3 {[%clk 0:02:57]}  Nc6 {[%clk 0:02:55]} 3. d4 {[%clk 0:02:57]}  exd4 {[%clk 0:02:52]} 4. Bc4 {[%clk 0:02:57]}  Nf6 {[%clk 0:02:50]} 5. e5 {[%clk 0:02:58]}  d5 {[%clk 0:02:50]} 6. Bb5 {[%clk 0:02:58]}  Ne4 {[%clk 0:02:50]} 7. Nxd4 {[%clk 0:02:58]}  Bd7 {[%clk 0:02:51]} 8. Bxc6 {[%clk 0:02:58]}  bxc6 {[%clk 0:02:51]} 9. O-O {[%clk 0:02:59]}  Bc5 {[%clk 0:02:50]} 10. f3 {[%clk 0:02:59]}  Ng5 {[%clk 0:02:50]} 11. f4 {[%clk 0:03:00]}  Ne6 {[%clk 0:02:41]} 12. c3 {[%clk 0:03:00]}  O-O {[%clk 0:02:38]} 13. f5 {[%clk 0:03:00]}  Nxd4 {[%clk 0:02:23]} 14. cxd4 {[%clk 0:03:01]}  Bb6 {[%clk 0:02:23]} 15. f6 {[%clk 0:03:01]}  gxf6 {[%clk 0:02:05]} 16. exf6 {[%clk 0:02:57]}  Kh8 {[%clk 0:01:39]} 17. Bh6 {[%clk 0:02:54]}  Rg8 {[%clk 0:01:39]} 18. Bg7+ {[%clk 0:02:55]}  Rxg7 {[%clk 0:01:39]} 19. fxg7+ {[%clk 0:02:56]}  Kxg7 {[%clk 0:01:40]} 20. Nc3 {[%clk 0:02:56]}  Qh4 {[%clk 0:01:38]} 21. Qf3 {[%clk 0:02:54]}  Bxd4+ {[%clk 0:01:34]} 22. Kh1 {[%clk 0:02:54]}  Rf8 {[%clk 0:01:14]} 23. Rae1 {[%clk 0:02:49]}  Bc5 {[%clk 0:00:57]} 24. Ne4 {[%clk 0:02:22]}  Bb4 {[%clk 0:00:46]} 25. Re3 {[%clk 0:02:04]}  f5 {[%clk 0:00:22]} 26. Ng3 {[%clk 0:01:46]}  Bd6 {[%clk 0:00:22]} 27. Qh5 {[%clk 0:01:13]}  Qxh5 {[%clk 0:00:14]} 28. Nxh5+ {[%clk 0:01:14]}  Kg6 {[%clk 0:00:14]} 29. Nf4+ {[%clk 0:01:13]}  Kf6 {[%clk 0:00:12]} 30. a3 {[%clk 0:01:09]}  a5 {[%clk 0:00:12]} 31. g3 {[%clk 0:01:03]}  Rb8 {[%clk 0:00:12]} 32. Re2 {[%clk 0:01:02]}  Be5 {[%clk 0:00:10]} 33. Nh5+ {[%clk 0:00:57]}  Kg5 {[%clk 0:00:11]} 34. Rxe5 {[%clk 0:00:56]}  Kxh5 {[%clk 0:00:11]} 35. Re7 {[%clk 0:00:57]}  Rd8 {[%clk 0:00:05]} 36. Rxh7+ {[%clk 0:00:57]}  Kg6 {[%clk 0:00:05]} 37. Re7 {[%clk 0:00:58]}  Kf6 {[%clk 0:00:05]} 38. Ree1 {[%clk 0:00:55]}  c5 {[%clk 0:00:06]} 39. Rc1 {[%clk 0:00:55]}  c4 {[%clk 0:00:05]} 40. Rfd1 {[%clk 0:00:50]}  c5 {[%clk 0:00:06]} 41. Kg1 {[%clk 0:00:48]}  Be6 {[%clk 0:00:06]} 42. Rxc4 {[%clk 0:00:48]}  Rb8 {[%clk 0:00:03]} 43. Rxc5 {[%clk 0:00:48]}  Rxb2 {[%clk 0:00:03]} 44. Rxa5 {[%clk 0:00:48]}  Ke5 {[%clk 0:00:02]} 45. Re1+ {[%clk 0:00:48]} 1-0


[Site "https://www.chess.com"]

[Event "Titled Tuesday Blitz May 24 Early 2022"]
[White "Polster, Christian"]
[Black "Vusatiuk, Vladimir"]
[WhiteFideId "12965081"]
[BlackFideId "14118610"]
[WhiteElo "2320"]
[BlackElo "2157"]
[Result "1/2-1/2"]
[Round "10"]
[TimeControl "180+1"]
[Date "2022.05.25"]
[WhiteClock "0:00:05"]
[BlackClock "0:00:18"]

1. e4 {[%clk 0:03:00]}  c5 {[%clk 0:03:00]} 2. Nc3 {[%clk 0:02:58]}  e6 {[%clk 0:03:00]} 3. Nge2 {[%clk 0:02:58]}  a6 {[%clk 0:02:59]} 4. g3 {[%clk 0:02:56]}  b5 {[%clk 0:02:59]} 5. Bg2 {[%clk 0:02:56]}  Bb7 {[%clk 0:03:00]} 6. O-O {[%clk 0:02:54]}  d6 {[%clk 0:03:00]} 7. d4 {[%clk 0:02:54]}  cxd4 {[%clk 0:03:00]} 8. Nxd4 {[%clk 0:02:55]}  Nd7 {[%clk 0:02:55]} 9. Re1 {[%clk 0:02:46]}  Qc7 {[%clk 0:02:53]} 10. Nd5 {[%clk 0:01:42]}  exd5 {[%clk 0:02:50]} 11. exd5+ {[%clk 0:01:43]}  Be7 {[%clk 0:02:48]} 12. Nf5 {[%clk 0:01:34]}  Kf8 {[%clk 0:02:26]} 13. Bf4 {[%clk 0:01:26]}  Re8 {[%clk 0:01:43]} 14. Rxe7 {[%clk 0:01:17]}  Nxe7 {[%clk 0:01:39]} 15. Bxd6 {[%clk 0:01:15]}  Qd8 {[%clk 0:01:27]} 16. Qg4 {[%clk 0:00:14]}  g6 {[%clk 0:00:52]} 17. Nxe7 {[%clk 0:00:13]}  Rxe7 {[%clk 0:00:50]} 18. Re1 {[%clk 0:00:09]}  Nf6 {[%clk 0:00:50]} 19. Qf4 {[%clk 0:00:08]}  Ng8 {[%clk 0:00:32]} 20. Bxe7+ {[%clk 0:00:07]}  Nxe7 {[%clk 0:00:31]} 21. d6 {[%clk 0:00:07]}  Nd5 {[%clk 0:00:28]} 22. Bxd5 {[%clk 0:00:04]}  Bxd5 {[%clk 0:00:29]} 23. Qe5 {[%clk 0:00:05]}  Rg8 {[%clk 0:00:24]} 24. Qxd5 {[%clk 0:00:05]}  Kg7 {[%clk 0:00:25]} 25. Re7 {[%clk 0:00:05]}  Rf8 {[%clk 0:00:24]} 26. Re5 {[%clk 0:00:05]}  Qf6 {[%clk 0:00:18]} 27. b3 {[%clk 0:00:03]}  Rd8 {[%clk 0:00:19]} 28. Re7 {[%clk 0:00:02]}  Rxd6 {[%clk 0:00:18]} 29. Rxf7+ {[%clk 0:00:02]}  Qxf7 {[%clk 0:00:19]} 30. Qxd6 {[%clk 0:00:02]}  Qf5 {[%clk 0:00:16]} 31. Qd2 {[%clk 0:00:01]}  Qf3 {[%clk 0:00:16]} 32. Qe3 {[%clk 0:00:01]}  Qd1+ {[%clk 0:00:16]} 33. Kg2 {[%clk 0:00:02]}  Qxc2 {[%clk 0:00:17]} 34. Qe7+ {[%clk 0:00:02]}  Kg8 {[%clk 0:00:18]} 35. Qe8+ {[%clk 0:00:02]}  Kg7 {[%clk 0:00:18]} 36. Qe7+ {[%clk 0:00:02]}  Kh6 {[%clk 0:00:19]} 37. Qd8 {[%clk 0:00:03]}  Qc6+ {[%clk 0:00:19]} 38. Kh3 {[%clk 0:00:03]}  Qe6+ {[%clk 0:00:19]} 39. Kg2 {[%clk 0:00:03]}  Qe4+ {[%clk 0:00:19]} 40. Kg1 {[%clk 0:00:03]}  Qb1+ {[%clk 0:00:19]} 41. Kg2 {[%clk 0:00:03]}  Qf5 {[%clk 0:00:15]} 42. Qh4+ {[%clk 0:00:04]}  Kg7 {[%clk 0:00:15]} 43. Qe7+ {[%clk 0:00:04]}  Kg8 {[%clk 0:00:16]} 44. Qe8+ {[%clk 0:00:04]}  Kg7 {[%clk 0:00:17]} 45. Qe7+ {[%clk 0:00:05]}  Kg8 {[%clk 0:00:17]} 46. Qe8+ {[%clk 0:00:05]}  Kg7 {[%clk 0:00:18]} 47. Qe7+ {[%clk 0:00:05]} 1/2-1/2


[Site "https://www.chess.com"]

[Event "Titled Tuesday Blitz May 24 Early 2022"]
[White "Pourkashiyan, Atousa"]
[Black "Richter, Nils"]
[WhiteFideId "12502014"]
[BlackFideId "12990809"]
[WhiteElo "2247"]
[BlackElo "2243"]
[Result "0-1"]
[Round "10"]
[TimeControl "180+1"]
[Date "2022.05.25"]
[WhiteClock "0:02:10"]
[BlackClock "0:02:26"]

1. e4 {[%clk 0:02:49]}  c5 {[%clk 0:02:59]} 2. Nf3 {[%clk 0:02:44]}  Nc6 {[%clk 0:02:59]} 3. d4 {[%clk 0:02:43]}  cxd4 {[%clk 0:03:00]} 4. Nxd4 {[%clk 0:02:44]}  Nf6 {[%clk 0:03:00]} 5. Nc3 {[%clk 0:02:44]}  h5 {[%clk 0:03:01]} 6. Be2 {[%clk 0:02:41]}  g6 {[%clk 0:03:00]} 7. Be3 {[%clk 0:02:39]}  Bg7 {[%clk 0:03:00]} 8. O-O {[%clk 0:02:39]}  O-O {[%clk 0:02:59]} 9. h3 {[%clk 0:02:39]}  d6 {[%clk 0:02:59]} 10. Qd2 {[%clk 0:02:39]}  Bd7 {[%clk 0:02:59]} 11. Rad1 {[%clk 0:02:39]}  Rc8 {[%clk 0:02:58]} 12. f4 {[%clk 0:02:39]}  a6 {[%clk 0:02:54]} 13. Kh1 {[%clk 0:02:38]}  b5 {[%clk 0:02:52]} 14. a3 {[%clk 0:02:37]}  Na5 {[%clk 0:02:40]} 15. Nf3 {[%clk 0:02:31]}  Rxc3 {[%clk 0:02:35]} 16. e5 {[%clk 0:02:21]}  Ne4 {[%clk 0:02:32]} 17. Qe1 {[%clk 0:02:10]}  Rxe3 {[%clk 0:02:26]} 0-1


[Site "https://www.chess.com"]

[Event "Titled Tuesday Blitz May 24 Early 2022"]
[White "Reprintsev, Alexander"]
[Black "Gallego Alcaraz, Andres Felipe"]
[WhiteFideId "14100541"]
[BlackFideId "4402669"]
[WhiteElo "2108"]
[BlackElo "2340"]
[Result "0-1"]
[Round "10"]
[TimeControl "180+1"]
[Date "2022.05.25"]
[WhiteClock "0:00:02"]
[BlackClock "0:01:36"]

1. e4 {[%clk 0:02:54]}  c5 {[%clk 0:02:58]} 2. b3 {[%clk 0:02:39]}  Nc6 {[%clk 0:02:58]} 3. Bb2 {[%clk 0:02:39]}  Nf6 {[%clk 0:02:56]} 4. e5 {[%clk 0:02:39]}  Nd5 {[%clk 0:02:56]} 5. Nf3 {[%clk 0:02:39]}  e6 {[%clk 0:02:54]} 6. g3 {[%clk 0:02:37]}  Be7 {[%clk 0:02:51]} 7. c4 {[%clk 0:02:37]}  Nc7 {[%clk 0:02:50]} 8. d4 {[%clk 0:02:33]}  cxd4 {[%clk 0:02:49]} 9. Nxd4 {[%clk 0:02:32]}  Nxe5 {[%clk 0:02:42]} 10. Nxe6 {[%clk 0:02:31]}  fxe6 {[%clk 0:02:30]} 11. Bxe5 {[%clk 0:02:30]}  Bf6 {[%clk 0:02:27]} 12. Bc3 {[%clk 0:02:29]}  O-O {[%clk 0:02:26]} 13. Bg2 {[%clk 0:02:09]}  d5 {[%clk 0:02:24]} 14. O-O {[%clk 0:02:06]}  b5 {[%clk 0:02:18]} 15. Qe2 {[%clk 0:01:43]}  bxc4 {[%clk 0:02:17]} 16. bxc4 {[%clk 0:01:42]}  Ba6 {[%clk 0:02:17]} 17. Bxf6 {[%clk 0:01:40]}  Qxf6 {[%clk 0:02:18]} 18. Nd2 {[%clk 0:01:39]}  Rad8 {[%clk 0:02:14]} 19. Rac1 {[%clk 0:01:39]}  dxc4 {[%clk 0:02:06]} 20. Nxc4 {[%clk 0:01:35]}  Nd5 {[%clk 0:02:06]} 21. Rfe1 {[%clk 0:00:26]}  Nb6 {[%clk 0:02:01]} 22. Qxe6+ {[%clk 0:00:25]}  Qxe6 {[%clk 0:02:00]} 23. Rxe6 {[%clk 0:00:26]}  Bxc4 {[%clk 0:01:56]} 24. Rxb6 {[%clk 0:00:26]}  axb6 {[%clk 0:01:53]} 25. Rxc4 {[%clk 0:00:26]}  Rd2 {[%clk 0:01:46]} 26. f4 {[%clk 0:00:10]}  Re8 {[%clk 0:01:42]} 27. Rc1 {[%clk 0:00:09]}  Ree2 {[%clk 0:01:37]} 28. Bf3 {[%clk 0:00:09]}  Rxh2 {[%clk 0:01:35]} 29. Rb1 {[%clk 0:00:09]}  Rb2 {[%clk 0:01:33]} 30. Re1 {[%clk 0:00:08]}  Kf8 {[%clk 0:01:33]} 31. Bd5 {[%clk 0:00:06]}  Rhd2 {[%clk 0:01:33]} 32. Be4 {[%clk 0:00:04]}  Re2 {[%clk 0:01:33]} 33. Rxe2 {[%clk 0:00:03]}  Rxe2 {[%clk 0:01:33]} 34. Bd5 {[%clk 0:00:03]}  Rd2 {[%clk 0:01:32]} 35. Bb3 {[%clk 0:00:02]}  h6 {[%clk 0:01:33]} 36. Kf1 {[%clk 0:00:02]}  Ke7 {[%clk 0:01:33]} 37. Ke1 {[%clk 0:00:02]}  Rb2 {[%clk 0:01:33]} 38. Kf1 {[%clk 0:00:02]}  Kf6 {[%clk 0:01:34]} 39. g4 {[%clk 0:00:02]}  Ke7 {[%clk 0:01:34]} 40. Kg1 {[%clk 0:00:01]}  Kd6 {[%clk 0:01:34]} 41. g5 {[%clk 0:00:01]}  hxg5 {[%clk 0:01:33]} 42. fxg5 {[%clk 0:00:02]}  Ke5 {[%clk 0:01:34]} 43. g6 {[%clk 0:00:02]}  Kf4 {[%clk 0:01:34]} 44. Bf7 {[%clk 0:00:02]}  Kg5 {[%clk 0:01:35]} 45. Kf1 {[%clk 0:00:02]}  Kf6 {[%clk 0:01:35]} 46. Ke1 {[%clk 0:00:02]}  Ke5 {[%clk 0:01:35]} 47. Kd1 {[%clk 0:00:02]}  Kd4 {[%clk 0:01:36]} 48. Kc1 {[%clk 0:00:02]}  Rh2 {[%clk 0:01:36]} 0-1


[Site "https://www.chess.com"]

[Event "Titled Tuesday Blitz May 24 Early 2022"]
[White "Roman, Rodrigo"]
[Black "Muhammed, Shuaau"]
[WhiteFideId "3701220"]
[BlackFideId "16700406"]
[WhiteElo "2001"]
[BlackElo "1674"]
[Result "1-0"]
[Round "10"]
[TimeControl "180+1"]
[Date "2022.05.25"]
[WhiteClock "0:01:56"]
[BlackClock "0:01:08"]

1. Nf3 {[%clk 0:03:00]}  e6 {[%clk 0:03:00]} 2. d4 {[%clk 0:03:00]}  Nf6 {[%clk 0:03:00]} 3. c4 {[%clk 0:03:01]}  d5 {[%clk 0:03:00]} 4. Nc3 {[%clk 0:03:01]}  Be7 {[%clk 0:02:59]} 5. Bg5 {[%clk 0:03:02]}  Nbd7 {[%clk 0:02:59]} 6. e3 {[%clk 0:03:03]}  O-O {[%clk 0:02:58]} 7. Qc2 {[%clk 0:03:03]}  h6 {[%clk 0:02:59]} 8. Bh4 {[%clk 0:03:02]}  a6 {[%clk 0:02:59]} 9. Rd1 {[%clk 0:03:01]}  dxc4 {[%clk 0:02:57]} 10. Bxc4 {[%clk 0:03:01]}  b5 {[%clk 0:02:57]} 11. Bd3 {[%clk 0:03:01]}  Bb7 {[%clk 0:02:57]} 12. a3 {[%clk 0:02:59]}  c5 {[%clk 0:02:54]} 13. dxc5 {[%clk 0:02:59]}  Bxc5 {[%clk 0:02:54]} 14. b4 {[%clk 0:02:59]}  Be7 {[%clk 0:02:53]} 15. e4 {[%clk 0:02:49]}  Rc8 {[%clk 0:02:43]} 16. Qb2 {[%clk 0:02:49]}  Qc7 {[%clk 0:02:41]} 17. Ne2 {[%clk 0:02:44]}  Bd6 {[%clk 0:02:25]} 18. Bxf6 {[%clk 0:02:42]}  gxf6 {[%clk 0:02:26]} 19. O-O {[%clk 0:02:39]}  Ne5 {[%clk 0:02:26]} 20. Nxe5 {[%clk 0:02:34]}  Bxe5 {[%clk 0:02:25]} 21. Qd2 {[%clk 0:02:34]}  Bxh2+ {[%clk 0:02:25]} 22. Kh1 {[%clk 0:02:34]}  Be5 {[%clk 0:02:16]} 23. Qxh6 {[%clk 0:02:33]}  Rfd8 {[%clk 0:02:07]} 24. f4 {[%clk 0:02:31]}  Bb2 {[%clk 0:01:56]} 25. Rf3 {[%clk 0:02:30]}  Rxd3 {[%clk 0:01:50]} 26. Rfxd3 {[%clk 0:02:26]}  Bxe4 {[%clk 0:01:48]} 27. Rh3 {[%clk 0:02:07]}  Bh7 {[%clk 0:01:29]} 28. Qxh7+ {[%clk 0:02:06]}  Kf8 {[%clk 0:01:30]} 29. Rhd3 {[%clk 0:02:02]}  Qc6 {[%clk 0:01:08]} 30. Rd7 {[%clk 0:01:56]} 1-0


[Site "https://www.chess.com"]

[Event "Titled Tuesday Blitz May 24 Early 2022"]
[White "Ronka, Erik"]
[Black "Rios Escobar, Adan"]
[WhiteFideId "505080"]
[BlackFideId "3403645"]
[WhiteElo "2264"]
[BlackElo "2425"]
[Result "0-1"]
[Round "10"]
[TimeControl "180+1"]
[Date "2022.05.25"]
[WhiteClock "0:00:12"]
[BlackClock "0:00:05"]

1. d4 {[%clk 0:03:00]}  Nf6 {[%clk 0:02:54]} 2. Nc3 {[%clk 0:03:00]}  d5 {[%clk 0:02:53]} 3. Bf4 {[%clk 0:03:00]}  e6 {[%clk 0:02:40]} 4. Nb5 {[%clk 0:02:59]}  Na6 {[%clk 0:02:34]} 5. a3 {[%clk 0:02:59]}  c6 {[%clk 0:02:33]} 6. Nc3 {[%clk 0:02:59]}  Be7 {[%clk 0:02:29]} 7. e3 {[%clk 0:02:59]}  b6 {[%clk 0:02:24]} 8. Bd3 {[%clk 0:02:57]}  O-O {[%clk 0:02:18]} 9. Nf3 {[%clk 0:02:56]}  c5 {[%clk 0:02:18]} 10. Ne5 {[%clk 0:02:53]}  Bb7 {[%clk 0:02:10]} 11. g4 {[%clk 0:02:53]}  Nd7 {[%clk 0:01:59]} 12. Qf3 {[%clk 0:02:46]}  c4 {[%clk 0:01:45]} 13. Bxc4 {[%clk 0:02:40]}  f6 {[%clk 0:01:33]} 14. Nxd7 {[%clk 0:02:35]}  Qxd7 {[%clk 0:01:34]} 15. Bb5 {[%clk 0:02:35]}  Qc8 {[%clk 0:01:29]} 16. Qg3 {[%clk 0:02:28]}  Kh8 {[%clk 0:01:21]} 17. Bd6 {[%clk 0:02:17]}  Rf7 {[%clk 0:01:17]} 18. O-O {[%clk 0:02:11]}  Bxd6 {[%clk 0:01:07]} 19. Qxd6 {[%clk 0:02:10]}  e5 {[%clk 0:01:04]} 20. h3 {[%clk 0:02:09]}  h5 {[%clk 0:01:02]} 21. f3 {[%clk 0:01:57]}  Nc7 {[%clk 0:00:51]} 22. Bd3 {[%clk 0:01:38]}  Ne8 {[%clk 0:00:40]} 23. Qb4 {[%clk 0:01:33]}  Re7 {[%clk 0:00:37]} 24. Bf5 {[%clk 0:01:28]}  Qc7 {[%clk 0:00:35]} 25. Kg2 {[%clk 0:01:24]}  h4 {[%clk 0:00:34]} 26. f4 {[%clk 0:01:18]}  Rd8 {[%clk 0:00:23]} 27. Qb5 {[%clk 0:01:12]}  Bc6 {[%clk 0:00:18]} 28. Qd3 {[%clk 0:01:11]}  Nd6 {[%clk 0:00:17]} 29. Bg6 {[%clk 0:01:05]}  Nc4 {[%clk 0:00:16]} 30. Rae1 {[%clk 0:00:32]}  e4 {[%clk 0:00:13]} 31. Qe2 {[%clk 0:00:31]}  Be8 {[%clk 0:00:09]} 32. Bxe8 {[%clk 0:00:24]}  Rexe8 {[%clk 0:00:10]} 33. Nd1 {[%clk 0:00:13]}  Kg8 {[%clk 0:00:06]} 34. Qf2 {[%clk 0:00:13]}  g5 {[%clk 0:00:06]} 35. fxg5 {[%clk 0:00:13]}  fxg5 {[%clk 0:00:07]} 36. Kh1 {[%clk 0:00:12]}  Rf8 {[%clk 0:00:06]} 37. Qg2 {[%clk 0:00:12]}  Rxf1+ {[%clk 0:00:03]} 38. Rxf1 {[%clk 0:00:13]}  Rf8 {[%clk 0:00:01]} 39. b3 {[%clk 0:00:14]}  Nxa3 {[%clk 0:00:01]} 40. Rxf8+ {[%clk 0:00:13]}  Kxf8 {[%clk 0:00:01]} 41. Qf1+ {[%clk 0:00:14]}  Qf7 {[%clk 0:00:01]} 42. Qe1 {[%clk 0:00:09]}  Nxc2 {[%clk 0:00:01]} 43. Qc3 {[%clk 0:00:07]}  Qf3+ {[%clk 0:00:02]} 44. Kh2 {[%clk 0:00:08]}  Qe2+ {[%clk 0:00:01]} 45. Kg1 {[%clk 0:00:08]}  Qxd1+ {[%clk 0:00:02]} 46. Kg2 {[%clk 0:00:09]}  Qe2+ {[%clk 0:00:02]} 47. Kg1 {[%clk 0:00:09]}  Qxe3+ {[%clk 0:00:02]} 48. Qxe3 {[%clk 0:00:09]}  Nxe3 {[%clk 0:00:03]} 49. Kf2 {[%clk 0:00:10]}  Nc2 {[%clk 0:00:03]} 50. Ke2 {[%clk 0:00:11]}  Nxd4+ {[%clk 0:00:04]} 51. Kd2 {[%clk 0:00:12]}  Nxb3+ {[%clk 0:00:05]} 52. Ke3 {[%clk 0:00:12]}  Nc5 {[%clk 0:00:05]} 0-1


[Site "https://www.chess.com"]

[Event "Titled Tuesday Blitz May 24 Early 2022"]
[White "Samadov, Read"]
[Black "Prokofiev, Valentyn"]
[WhiteFideId "13417444"]
[BlackFideId "14160161"]
[WhiteElo "2084"]
[BlackElo "2174"]
[Result "1-0"]
[Round "10"]
[TimeControl "180+1"]
[Date "2022.05.24"]
[WhiteClock "0:02:04"]
[BlackClock "0:01:45"]

1. d4 {[%clk 0:03:00]}  Nf6 {[%clk 0:03:00]} 2. c4 {[%clk 0:03:01]}  c5 {[%clk 0:03:00]} 3. d5 {[%clk 0:03:01]}  g6 {[%clk 0:03:00]} 4. Nc3 {[%clk 0:03:01]}  Bg7 {[%clk 0:03:01]} 5. e4 {[%clk 0:03:01]}  d6 {[%clk 0:03:01]} 6. f4 {[%clk 0:03:02]}  O-O {[%clk 0:03:01]} 7. Nf3 {[%clk 0:03:02]}  e6 {[%clk 0:03:01]} 8. Be2 {[%clk 0:03:03]}  Re8 {[%clk 0:03:00]} 9. e5 {[%clk 0:03:01]}  Ng4 {[%clk 0:02:57]} 10. h3 {[%clk 0:02:59]}  Nh6 {[%clk 0:02:57]} 11. O-O {[%clk 0:02:58]}  Nf5 {[%clk 0:02:56]} 12. Ne4 {[%clk 0:02:57]}  dxe5 {[%clk 0:02:54]} 13. fxe5 {[%clk 0:02:56]}  exd5 {[%clk 0:02:54]} 14. cxd5 {[%clk 0:02:56]}  Nd4 {[%clk 0:02:54]} 15. Nxd4 {[%clk 0:02:39]}  cxd4 {[%clk 0:02:54]} 16. Nd6 {[%clk 0:02:37]}  Rf8 {[%clk 0:02:33]} 17. Nxc8 {[%clk 0:02:35]}  Qxc8 {[%clk 0:02:25]} 18. Qxd4 {[%clk 0:02:35]}  Re8 {[%clk 0:02:23]} 19. Qf2 {[%clk 0:02:31]}  Qd7 {[%clk 0:02:19]} 20. e6 {[%clk 0:02:28]}  fxe6 {[%clk 0:02:18]} 21. Bg4 {[%clk 0:02:28]}  Qd8 {[%clk 0:01:50]} 22. Bxe6+ {[%clk 0:02:23]}  Rxe6 {[%clk 0:01:50]} 23. Qf7+ {[%clk 0:02:21]}  Kh8 {[%clk 0:01:51]} 24. dxe6 {[%clk 0:02:21]}  Nc6 {[%clk 0:01:50]} 25. Be3 {[%clk 0:02:16]}  Qd3 {[%clk 0:01:49]} 26. Rae1 {[%clk 0:02:09]}  Rf8 {[%clk 0:01:43]} 27. Qxf8+ {[%clk 0:02:04]}  Bxf8 {[%clk 0:01:44]} 28. Rxf8+ {[%clk 0:02:04]}  Kg7 {[%clk 0:01:44]} 29. Rf7+ {[%clk 0:02:05]}  Kg8 {[%clk 0:01:45]} 30. Bh6 {[%clk 0:02:04]} 1-0


[Site "https://www.chess.com"]